bitfinex-derivatives/quotes_BTCF0:USTF0_20241009
["timestamp","ask_amount","ask_price","bid_price","bid_amount"]
[1728503153479,0.445682,61111.0,61110.0,0.36598003]
[1728503153480,0.3638,61111.0,61110.0,0.36598003]
[1728503153681,0.3628,61111.0,61110.0,0.36598003]
[1728503154383,0.3618,61111.0,61110.0,0.36798003]
[1728503154571,0.3608,61111.0,61110.0,0.36798003]
[1728503154778,0.3608,61111.0,61110.0,0.36598003]
[1728503154977,0.3608,61111.0,61110.0,0.36798003]
[1728503155278,0.3608,61111.0,61110.0,0.57152974]
[1728503155484,0.3608,61111.0,61110.0,0.57352974]
[1728503156272,0.3034417,61111.0,61110.0,0.49179378]
[1728503156878,0.081877,61113.0,61110.0,0.36998003]
[1728503157185,1.6054915,61116.0,61114.0,0.081874]
[1728503157186,0.081874,61115.0,61114.0,0.081874]
[1728503157481,0.081874,61115.0,61114.0,0.36597303]
[1728503158278,0.082874,61115.0,61114.0,0.36597303]
[1728503158679,0.083874,61115.0,61114.0,0.36597303]
[1728503160193,0.082874,61115.0,61114.0,0.36597303]
[1728503160386,0.083874,61115.0,61114.0,0.36597303]
[1728503161285,0.081874,61115.0,61114.0,0.36597303]
[1728503161589,0.083874,61115.0,61114.0,0.36597303]
[1728503163289,0.083874,61115.0,61114.0,0.28409903]
[1728503163784,0.081882,61109.0,61108.0,0.446483]
[1728503163991,0.081882,61109.0,61108.0,0.442683]
[1728503164190,0.081882,61109.0,61108.0,0.72678203]
[1728503164791,0.081881,61110.0,61109.0,0.081882]
[1728503164984,0.081881,61110.0,61109.0,0.36598103]
[1728503165585,0.081881,61110.0,61109.0,0.48735645]
[1728503166288,0.081881,61110.0,61109.0,0.49135645]
[1728503167695,0.081881,61110.0,61109.0,0.49635645]
[1728503170698,0.081877,61113.0,61109.0,0.64145122]
[1728503171000,0.081877,61113.0,61112.0,0.0980135]
[1728503171291,0.081877,61113.0,61112.0,0.26615603]
[1728503171894,0.081877,61113.0,61112.0,0.26624478]
[1728503172694,0.19,61115.0,61112.0,0.54843282]
[1728503172897,0.081875,61114.0,61113.0,0.26624478]
[1728503175402,0.081875,61114.0,61113.0,0.34812178]
[1728503176687,0.081875,61114.0,61113.0,0.34747966]
[1728503179106,0.11350698,61114.0,61113.0,0.081877]
[1728503179291,0.15360804,61114.0,61113.0,0.081877]
[1728503180689,0.07173304,61114.0,61108.0,0.3608]
[1728503180894,0.081882,61111.0,61110.0,0.08188]
[1728503181096,0.15361504,61111.0,61110.0,0.08188]
[1728503181292,0.15361504,61111.0,61110.0,0.36597903]
[1728503183103,0.15361504,61111.0,61110.0,0.36897903]
[1728503184705,0.15361504,61111.0,61110.0,0.37197903]
[1728503186904,0.15361504,61111.0,61110.0,0.63801407]
[1728503186905,0.081882,61111.0,61110.0,0.63801407]
[1728503191321,0.081882,61111.0,61110.0,0.63800848]
[1728503194029,0.11264594,61111.0,61110.0,0.37197903]
[1728503196130,0.11264598,61111.0,61110.0,0.37197903]
[1728503196828,0.09117688,61111.0,61110.0,0.37197903]
[1728503197032,0.0409129,61111.0,61110.0,0.37197903]
[1728503197219,0.11264598,61111.0,61110.0,0.37197903]
[1728503197825,0.13127919,61111.0,61110.0,0.37197903]
[1728503198030,0.16291119,61111.0,61110.0,0.37197903]
[1728503199220,0.11264598,61111.0,61110.0,0.37197903]
[1728503202032,0.0409129,61111.0,61110.0,0.59142341]
[1728503203336,0.0409129,61111.0,61110.0,0.6374708]
[1728503204536,1.5409129,61111.0,61110.0,0.6374708]
[1728503206632,1.5409129,61111.0,61110.0,0.49310634]
[1728503207026,1.5409129,61111.0,61110.0,0.63751973]
[1728503207638,1.5409129,61111.0,61110.0,0.49310634]
[1728503207826,1.5409129,61111.0,61110.0,0.63750815]
[1728503208027,1.5409129,61111.0,61110.0,0.49310634]
[1728503208436,1.5409129,61111.0,61110.0,0.63750971]
[1728503208636,1.5409129,61111.0,61110.0,0.49310634]
[1728503209336,1.5409129,61111.0,61110.0,0.63751021]
[1728503209529,1.5409129,61111.0,61110.0,0.49310634]
[1728503210035,1.5409129,61111.0,61110.0,0.63751024]
[1728503210228,1.5409129,61111.0,61110.0,0.63751244]
[1728503210430,1.5409129,61111.0,61110.0,0.63751251]
[1728503210639,1.5409129,61111.0,61110.0,0.63753344]
[1728503210935,1.5409129,61111.0,61110.0,0.2090292]
[1728503211135,1.5409129,61111.0,61110.0,0.49312823]
[1728503214032,1.5409129,61111.0,61110.0,0.41124823]
[1728503214233,1.6409129,61111.0,61110.0,0.37323816]
[1728503214436,1.8307129,61111.0,61110.0,0.28409903]
[1728503214736,1.8307129,61111.0,61103.0,0.0038]
[1728503214737,1.8307129,61111.0,61105.0,0.0819262]
[1728503214930,0.442686,61106.0,61105.0,0.0819262]
[1728503215129,0.442686,61106.0,61099.0,0.0038]
[1728503215130,0.081889,61104.0,61103.0,0.0819262]
[1728503215333,0.201889,61104.0,61099.0,0.09830844]
[1728503215632,0.201894,61100.0,61099.0,0.09830844]
[1728503216530,0.271894,61100.0,61099.0,0.09830844]
[1728503217030,0.30453235,61100.0,61099.0,0.008]
[1728503218541,0.30553235,61100.0,61099.0,0.009]
[1728503219844,1.06855407,61100.0,61099.0,0.009]
[1728503220145,1.16135407,61100.0,61099.0,0.009]
[1728503220329,0.081905,61092.0,61091.0,0.0038]
[1728503220534,0.081913,61086.0,61085.0,0.081913]
[1728503221941,0.081914,61085.0,61084.0,0.3608]
[1728503222336,0.081917,61083.0,61082.0,0.175517]
[1728503223652,0.001,61085.0,61082.0,0.175517]
[1728503223840,0.001,61085.0,61084.0,0.081915]
[1728503224145,0.081903,61094.0,61090.0,0.081907]
[1728503224346,0.00625587,61099.0,61094.0,0.081902]
[1728503224548,0.00625587,61099.0,61094.0,0.271902]
[1728503224549,0.0316431,61095.0,61094.0,0.271902]
[1728503224740,0.00245587,61099.0,61094.0,0.271902]
[1728503224941,0.00245587,61099.0,61098.0,0.271897]
[1728503226145,0.08535087,61099.0,61098.0,0.271897]
[1728503226653,0.08535087,61099.0,61098.0,0.081897]
[1728503227351,0.08635087,61099.0,61098.0,0.081897]
[1728503227549,0.08635087,61099.0,61098.0,0.085897]
[1728503227749,0.00445587,61099.0,61098.0,0.085897]
[1728503228053,0.00445587,61099.0,61098.0,0.275897]
[1728503232156,0.00445587,61099.0,61098.0,0.766897]
[1728503232364,0.1577105,61106.0,61105.0,0.081887]
[1728503232658,0.1577105,61106.0,61105.0,0.271887]
[1728503235156,0.1587105,61106.0,61105.0,0.271887]
[1728503235858,0.1587105,61106.0,61105.0,0.361187]
[1728503237556,0.2405965,61106.0,61105.0,0.361187]
[1728503237751,0.1587105,61106.0,61105.0,0.361187]
[1728503245958,0.00088,61110.0,61105.0,1.452147]
[1728503246162,0.0038,61114.0,61113.0,0.081877]
[1728503246462,0.3608,61123.0,61115.0,0.08187]
[1728503246463,0.081874,61116.0,61115.0,0.08187]
[1728503246665,0.081874,61116.0,61115.0,0.44267]
[1728503246860,0.081874,61116.0,61115.0,0.08187]
[1728503247067,1.581874,61116.0,61115.0,0.08187]
[1728503247459,1.581874,61116.0,61112.0,0.081878]
[1728503247460,0.081879,61113.0,61112.0,0.081878]
[1728503247762,0.081881,61110.0,61109.0,0.08304]
[1728503248265,0.081881,61110.0,61109.0,0.08188]
[1728503250763,0.081881,61110.0,61109.0,0.08488]
[1728503251357,0.19,61113.0,61102.0,0.27569]
[1728503251560,0.19,61113.0,61106.0,0.081882]
[1728503251561,0.081889,61107.0,61106.0,0.081882]
[1728503252972,0.083889,61107.0,61106.0,0.081882]
[1728503254160,0.084889,61107.0,61106.0,0.081882]
[1728503254358,0.11452268,61107.0,61106.0,0.083882]
[1728503254763,0.11352268,61107.0,61106.0,0.083882]
[1728503255163,0.081889,61107.0,61106.0,0.083882]
[1728503255858,0.081889,61107.0,61106.0,0.081882]
[1728503256062,0.082889,61107.0,61106.0,0.081882]
[1728503256764,0.081889,61107.0,61106.0,0.083882]
[1728503256963,0.081889,61107.0,61106.0,0.084882]
[1728503257166,0.3608,61107.0,61101.0,0.08182276]
[1728503257471,0.081893,61101.0,61097.0,0.04908697]
[1728503257661,0.081897,61098.0,61092.0,0.00245504]
[1728503257858,0.081911,61087.0,61086.0,0.081912]
[1728503258070,0.081911,61087.0,61085.0,0.3608]
[1728503258071,0.081913,61086.0,61085.0,0.4438584]
[1728503258269,0.2796,61086.0,61084.0,0.1637324]
[1728503258477,0.081914,61085.0,61084.0,0.081914]
[1728503258777,1.581914,61085.0,61084.0,0.081914]
[1728503259165,0.081921,61081.0,61080.0,0.081919]
[1728503260873,0.001,61081.0,61080.0,0.081919]
[1728503261069,0.001,61081.0,61080.0,0.084919]
[1728503261070,0.002,61081.0,61080.0,0.084919]
[1728503261272,0.04292905,61084.0,61080.0,0.003]
[1728503261472,0.04292905,61084.0,61083.0,0.442717]
[1728503262276,1.5,61085.0,61084.0,0.081915]
[1728503262470,0.45876,61103.0,61093.0,0.081903]
[1728503262675,0.45876,61103.0,61096.0,0.19]
[1728503262676,0.168298,61097.0,61096.0,0.19]
[1728503262973,0.08191,61089.0,61088.0,0.271908]
[1728503263163,0.08191,61089.0,61088.0,0.632708]
[1728503264178,0.08191,61089.0,61088.0,0.633708]
[1728503264561,0.081904,61094.0,61093.0,0.081903]
[1728503265173,1.60594715,61097.0,61096.0,0.081899]
[1728503265475,1.60498714,61097.0,61096.0,0.081899]
[1728503266572,1.60998714,61097.0,61096.0,0.081899]
[1728503267173,1.60998714,61097.0,61096.0,0.082899]
[1728503267370,1.60498714,61097.0,61096.0,0.082899]
[1728503267572,1.60498714,61097.0,61096.0,0.083899]
[1728503268271,1.60498714,61097.0,61096.0,0.082899]
[1728503269070,1.60798714,61097.0,61096.0,0.081899]
[1728503269873,1.60498714,61097.0,61096.0,0.081899]
[1728503270080,1.60598714,61097.0,61096.0,0.081899]
[1728503270880,1.60498714,61097.0,61096.0,0.082899]
[1728503271080,1.60498714,61097.0,61096.0,0.083899]
[1728503272566,1.60598714,61097.0,61096.0,0.082899]
[1728503272781,1.60598714,61097.0,61096.0,0.081899]
[1728503273169,0.081905,61092.0,61091.0,0.081903]
[1728503274577,0.081905,61092.0,61091.0,0.084903]
[1728503274578,0.271905,61092.0,61091.0,0.084903]
[1728503274877,0.271905,61092.0,61091.0,0.003]
[1728503275076,0.081914,61085.0,61084.0,0.081915]
[1728503275282,0.081914,61085.0,61080.0,0.362]
[1728503275283,0.19,61085.0,61080.0,0.3608]
[1728503275475,0.19,61081.0,61080.0,0.3608]
[1728503275680,0.271919,61081.0,61080.0,0.3608]
[1728503275875,0.271919,61081.0,61080.0,0.442721]
[1728503276376,0.271919,61081.0,61072.0,0.2537]
[1728503276377,0.081926,61076.0,61072.0,0.1704]
[1728503276578,0.081926,61076.0,61073.0,0.08155572]
[1728503276579,0.081929,61074.0,61073.0,0.08155572]
[1728503276776,0.08193,61073.0,61071.0,0.08155572]
[1728503277086,0.081933,61071.0,61070.0,0.08438877]
[1728503277285,0.271933,61071.0,61070.0,0.00245577]
[1728503277687,0.271933,61071.0,61067.0,0.081938]
[1728503277878,0.19,61068.0,61067.0,0.14719304]
[1728503278181,0.271933,61071.0,61070.0,0.081933]
[1728503278387,1.771933,61071.0,61070.0,0.081933]
[1728503278578,1.771933,61071.0,61066.0,0.14719338]
[1728503278579,0.081938,61067.0,61066.0,0.14719338]
[1728503278983,0.271938,61067.0,61066.0,0.06525538]
[1728503279287,0.271938,61067.0,61064.0,0.1677]
[1728503279288,0.081941,61065.0,61064.0,0.0848]
[1728503279695,0.081941,61065.0,61064.0,0.166742]
[1728503280187,0.191,61067.0,61063.0,0.06525538]
[1728503280391,0.083938,61067.0,61066.0,0.002]
[1728503280789,0.082938,61067.0,61066.0,0.002]
[1728503280988,0.082938,61067.0,61062.0,0.081944]
[1728503280989,0.081938,61067.0,61064.0,0.002]
[1728503281191,0.082941,61065.0,61064.0,0.004]
[1728503281382,0.272941,61065.0,61064.0,0.004]
[1728503281584,0.191,61065.0,61057.0,0.06521279]
[1728503281894,0.191,61065.0,61045.0,0.0044]
[1728503281895,0.19,61057.0,61048.0,0.08155572]
[1728503282085,0.3608,61058.0,61046.0,0.08155572]
[1728503282086,0.081965,61047.0,61046.0,0.08155572]
[1728503282288,0.08197,61043.0,61042.0,0.16955758]
[1728503282489,0.081967,61047.0,61046.0,0.081966]
[1728503282894,0.081967,61047.0,61042.0,0.2511133]
[1728503282895,0.3608,61050.0,61049.0,0.081962]
[1728503283298,0.38430047,61050.0,61049.0,0.081962]
[1728503283485,1.88430047,61050.0,61049.0,0.081962]
[1728503284395,1.88430047,61050.0,61049.0,0.083962]
[1728503284396,1.52450047,61050.0,61049.0,0.083962]
[1728503284593,0.001,61050.0,61049.0,0.273842]
[1728503284895,0.3608,61063.0,61049.0,1.3694]
[1728503285091,0.3608,61063.0,61058.0,0.081948]
[1728503285092,0.08195,61059.0,61058.0,0.081948]
[1728503285885,1.5,61061.0,61055.0,0.0837]
[1728503286091,1.5,61061.0,61060.0,0.081948]
[1728503286294,1.60470763,61061.0,61060.0,0.081948]
[1728503286887,1.60770763,61061.0,61060.0,0.081948]
[1728503287089,1.61070763,61061.0,61060.0,0.081948]
[1728503287891,1.60770763,61061.0,61060.0,0.081948]
[1728503288092,1.60870763,61061.0,61060.0,0.081948]
[1728503288487,1.52676163,61061.0,61060.0,0.081948]
[1728503288697,0.004,61061.0,61060.0,0.271948]
[1728503289402,1.5,61063.0,61062.0,0.081945]
[1728503290697,1.5,61063.0,61062.0,0.083945]
[1728503291596,1.581944,61063.0,61062.0,0.083945]
[1728503291994,1.582944,61063.0,61062.0,0.083945]
[1728503292304,0.083944,61063.0,61062.0,0.082945]
[1728503292694,0.082944,61063.0,61062.0,0.082945]
[1728503292900,0.081944,61063.0,61062.0,0.082945]
[1728503293504,1.581944,61063.0,61062.0,0.082945]
[1728503294102,1.5,61063.0,61062.0,0.082945]
[1728503295207,0.0234177,61066.0,61062.0,0.082945]
[1728503295504,0.08194,61066.0,61065.0,0.271941]
[1728503295697,1.58194,61066.0,61065.0,0.271941]
[1728503296807,1.58294,61066.0,61065.0,0.271941]
[1728503297002,0.001,61066.0,61065.0,0.272941]
[1728503297302,0.08294,61066.0,61065.0,0.272941]
[1728503297998,0.08294,61066.0,61065.0,0.082941]
[1728503298395,0.08194,61066.0,61065.0,0.082941]
[1728503298601,1.50084,61067.0,61066.0,0.08194]
[1728503298907,1.5,61067.0,61066.0,0.08194]
[1728503299098,1.581938,61067.0,61066.0,0.08194]
[1728503299605,1.581858,61067.0,61066.0,0.08194]
[1728503300409,1.581858,61067.0,61066.0,0.08294]
[1728503302815,1.581858,61067.0,61066.0,0.08194]
[1728503303105,1.581858,61067.0,61066.0,0.08294]
[1728503303315,1.49992,61067.0,61066.0,0.08294]
[1728503303999,1.581858,61067.0,61066.0,0.08294]
[1728503304201,0.081938,61067.0,61066.0,0.08294]
[1728503304495,0.02306539,61069.0,61068.0,0.081937]
[1728503304797,1.5,61069.0,61068.0,0.081937]
[1728503305002,1.581936,61069.0,61068.0,0.081937]
[1728503305307,1.581936,61069.0,61068.0,0.152037]
[1728503306212,1.581936,61069.0,61068.0,0.153037]
[1728503306412,1.54093744,61069.0,61068.0,0.27175709]
[1728503306600,1.54093744,61069.0,61068.0,0.35348199]
[1728503307000,1.54093744,61069.0,61068.0,0.27175709]
[1728503307398,1.54093744,61069.0,61068.0,0.27178346]
[1728503307806,1.54093744,61069.0,61068.0,0.35352648]
[1728503308010,1.54193744,61069.0,61068.0,0.35352648]
[1728503308201,1.54193744,61069.0,61068.0,0.35352645]
[1728503308400,0.36164,61075.0,61068.0,1.28108646]
[1728503308601,0.0038,61079.0,61073.0,0.08193]
[1728503308809,0.085716,61084.0,61083.0,0.081917]
[1728503309012,0.081916,61084.0,61083.0,0.271917]
[1728503309402,0.0038,61087.0,61084.0,0.081915]
[1728503309709,0.0038,61087.0,61086.0,0.081913]
[1728503309898,0.0038,61087.0,61086.0,0.16359746]
[1728503310100,0.0038,61087.0,61086.0,0.281234]
[1728503310301,0.0038,61087.0,61086.0,0.081913]
[1728503311810,0.0068,61087.0,61086.0,0.081913]
[1728503312203,0.0068,61087.0,61086.0,0.442713]
[1728503312404,0.0076,61091.0,61090.0,0.081907]
[1728503312615,0.00245616,61096.0,61090.0,0.271907]
[1728503312811,0.00245616,61096.0,61094.0,0.19]
[1728503313111,0.00245616,61096.0,61095.0,0.226301]
[1728503314308,0.08435516,61096.0,61095.0,0.226301]
[1728503314513,0.01445616,61096.0,61095.0,0.226301]
[1728503314805,0.02645616,61096.0,61095.0,0.226301]
[1728503315310,0.01445616,61096.0,61095.0,0.226301]
[1728503315507,0.02645616,61096.0,61095.0,0.226301]
[1728503317918,0.024,61096.0,61095.0,1.317341]
[1728503319114,0.013,61096.0,61095.0,1.34033279]
[1728503320111,0.081887,61106.0,61095.0,1.34033279]
[1728503320312,0.081887,61106.0,61105.0,0.271887]
[1728503320703,1.581887,61106.0,61105.0,0.271887]
[1728503320907,1.5,61106.0,61105.0,0.271887]
[1728503321111,1.5,61106.0,61105.0,0.632687]
[1728503321803,1.514,61106.0,61105.0,0.633687]
[1728503323118,0.014,61106.0,61105.0,0.633687]
[1728503326519,0.014,61106.0,61105.0,0.65670817]
[1728503327021,0.014,61106.0,61105.0,1.74766817]
[1728503327319,1.5,61113.0,61112.0,0.081878]
[1728503327614,1.5,61113.0,61112.0,0.442678]
[1728503327814,1.5,61113.0,61112.0,0.933558]
[1728503328317,0.08432377,61119.0,61118.0,0.08187]
[1728503328512,0.08432377,61119.0,61118.0,0.63267]
[1728503328718,1.58432377,61119.0,61118.0,0.63267]
[1728503329429,1.59824377,61119.0,61118.0,0.63367]
[1728503330213,0.01637477,61119.0,61118.0,0.63367]
[1728503330522,0.03037477,61119.0,61118.0,0.63467]
[1728503331508,0.02037477,61119.0,61118.0,0.63467]
[1728503332823,0.01637477,61119.0,61118.0,0.63367]
[1728503333217,0.01637477,61119.0,61118.0,0.65679015]
[1728503333609,0.01337477,61119.0,61118.0,0.65679015]
[1728503336617,0.04500168,61119.0,61118.0,0.65679015]
[1728503338028,0.16458954,61119.0,61118.0,0.63367]
[1728503338209,0.16458954,61119.0,61118.0,0.44367]
[1728503338414,0.16458954,61119.0,61118.0,0.63367]
[1728503340525,0.16458954,61119.0,61118.0,0.3618]
[1728503340725,0.16458954,61119.0,61118.0,0.44367]
[1728503340921,0.16458954,61119.0,61118.0,0.08287]
[1728503341228,0.21484658,61119.0,61118.0,0.27287]
[1728503341927,0.36190109,61119.0,61118.0,0.27287]
[1728503342330,0.21484658,61119.0,61118.0,0.27287]
[1728503342630,0.21484658,61119.0,61118.0,0.17944672]
[1728503342820,0.092868,61119.0,61118.0,0.17944672]
[1728503343019,0.092868,61119.0,61118.0,0.26131672]
[1728503343231,0.21484823,61119.0,61118.0,0.26131672]
[1728503343827,0.37824213,61119.0,61118.0,0.26131672]
[1728503344531,0.092868,61119.0,61118.0,0.26131672]
[1728503344828,0.092788,61119.0,61118.0,0.26131672]
[1728503350736,0.01092,61119.0,61114.0,0.3608]
[1728503350936,0.081874,61116.0,61115.0,0.081873]
[1728503351823,0.081877,61113.0,61112.0,0.06522308]
[1728503352135,0.081877,61113.0,61110.0,0.08188]
[1728503352136,0.081879,61111.0,61110.0,0.08188]
[1728503352728,0.081883,61108.0,61107.0,0.081884]
[1728503354131,0.081883,61108.0,61107.0,0.086884]
[1728503355336,0.082883,61108.0,61107.0,0.092884]
[1728503359635,0.22928937,61108.0,61107.0,0.092804]
[1728503360041,0.3111866,61108.0,61107.0,0.092804]
[1728503360341,0.35128829,61108.0,61107.0,0.092804]
[1728503360547,0.20488192,61108.0,61107.0,0.092804]
[1728503362746,0.12299892,61108.0,61107.0,0.092804]
[1728503365649,0.20488192,61108.0,61107.0,0.092804]
[1728503366541,0.20488192,61108.0,61107.0,0.212804]
[1728503366741,0.082883,61108.0,61107.0,0.212804]
[1728503367538,0.082883,61108.0,61107.0,0.092804]
[1728503367740,0.082883,61108.0,61107.0,0.212804]
[1728503369448,0.001,61108.0,61107.0,0.212804]
[1728503374746,0.03263109,61108.0,61107.0,0.212804]
[1728503375553,0.12299356,61108.0,61107.0,0.212804]
[1728503376543,0.12299356,61108.0,61107.0,0.131]
[1728503376746,0.12299356,61108.0,61107.0,0.212884]
[1728503377353,0.30272685,61108.0,61107.0,0.212884]
[1728503377755,0.12299356,61108.0,61107.0,0.212884]
[1728503377948,0.001,61108.0,61107.0,0.212884]
[1728503378255,0.21236311,61108.0,61107.0,0.212884]
[1728503378857,0.18171771,61108.0,61107.0,0.212884]
[1728503379057,0.21196929,61108.0,61107.0,0.212884]
[1728503379357,0.18171771,61108.0,61107.0,0.212884]
[1728503379549,0.12298868,61108.0,61107.0,0.212884]
[1728503379748,0.18171771,61108.0,61107.0,0.212884]
[1728503379946,0.12298868,61108.0,61107.0,0.212884]
[1728503380545,0.16311656,61115.0,61107.0,0.731]
[1728503380750,0.16311656,61117.0,61116.0,0.081873]
[1728503380950,0.17942821,61123.0,61120.0,0.081867]
[1728503380951,0.16311656,61121.0,61120.0,0.081867]
[1728503381156,0.10848979,61126.0,61123.0,0.081863]
[1728503381157,0.16311656,61124.0,61123.0,0.081863]
[1728503381351,0.10468979,61126.0,61125.0,0.08186]
[1728503381550,0.10468979,61126.0,61125.0,0.56266]
[1728503382558,0.11768979,61126.0,61125.0,0.56366]
[1728503383157,0.027,61126.0,61125.0,0.56466]
[1728503384356,0.027,61126.0,61125.0,0.61366772]
[1728503385157,0.027,61126.0,61125.0,0.56466]
[1728503386260,0.027,61126.0,61125.0,1.70441837]
[1728503386458,0.027,61126.0,61125.0,1.72546]
[1728503386657,0.027,61126.0,61125.0,1.12546]
[1728503386851,0.0038,61132.0,61131.0,0.081852]
[1728503387051,0.081843,61138.0,61137.0,0.081844]
[1728503388448,0.081843,61138.0,61137.0,0.082844]
[1728503389049,0.088843,61138.0,61137.0,0.083844]
[1728503389759,0.2377596,61138.0,61136.0,0.09365427]
[1728503389954,0.2308806,61137.0,61136.0,0.17550027]
[1728503390354,0.081851,61134.0,61133.0,0.081849]
[1728503390560,0.203798,61134.0,61133.0,0.081849]
[1728503390755,0.26250694,61134.0,61133.0,0.081849]
[1728503391155,0.26250694,61134.0,61133.0,0.271849]
[1728503391649,0.26250694,61134.0,61133.0,0.081849]
[1728503392050,0.26850694,61134.0,61133.0,0.082849]
[1728503392454,0.26850984,61134.0,61133.0,0.083849]
[1728503393269,0.26850984,61134.0,61133.0,0.273849]
[1728503394665,0.18665884,61134.0,61133.0,0.273849]
[1728503394964,0.1279499,61134.0,61133.0,0.273849]
[1728503395868,0.18665884,61134.0,61133.0,0.273849]
[1728503396057,0.1279499,61134.0,61133.0,0.273849]
[1728503396263,0.07770535,61134.0,61133.0,0.273849]
[1728503396455,0.21624481,61134.0,61133.0,0.273849]
[1728503396658,0.006,61134.0,61133.0,0.273849]
[1728503399664,0.087848,61134.0,61133.0,0.273849]
[1728503399873,0.006,61134.0,61133.0,0.273849]
[1728503400369,0.087848,61134.0,61133.0,0.08385]
[1728503400775,0.087848,61134.0,61133.0,0.27385]
[1728503400967,0.006,61134.0,61133.0,0.27385]
[1728503402580,0.087848,61134.0,61133.0,0.002]
[1728503402966,0.006,61134.0,61133.0,0.08385]
[1728503403173,0.087848,61134.0,61133.0,0.08385]
[1728503403372,0.087848,61134.0,61133.0,0.002]
[1728503404073,1.587848,61134.0,61133.0,0.002]
[1728503406075,2.98914213,61134.0,61121.0,0.19]
[1728503406376,0.19,61126.0,61118.0,0.00245348]
[1728503406577,0.19,61126.0,61119.0,0.081868]
[1728503406881,0.081868,61119.0,61118.0,0.00245348]
[1728503407268,0.11349642,61119.0,61118.0,0.00245348]
[1728503408073,0.11349642,61119.0,61118.0,0.00445348]
[1728503408479,0.11349642,61119.0,61118.0,0.00645348]
[1728503408680,1.61349642,61119.0,61118.0,0.00645348]
[1728503409279,1.61349642,61119.0,61118.0,0.08832348]
[1728503409471,1.581868,61119.0,61118.0,0.08832348]
[1728503410278,1.581868,61119.0,61118.0,0.00645348]
[1728503410478,1.6134969,61119.0,61118.0,0.00645348]
[1728503410674,1.9742969,61119.0,61118.0,0.00645348]
[1728503410875,1.9742969,61119.0,61108.0,0.19]
[1728503410876,0.081877,61113.0,61108.0,0.19]
[1728503411072,0.081888,61106.0,61105.0,0.081886]
[1728503413587,0.082888,61106.0,61105.0,0.089886]
[1728503413984,0.082888,61106.0,61105.0,0.099886]
[1728503414881,0.082888,61106.0,61105.0,0.018]
[1728503415383,0.153888,61106.0,61105.0,0.018]
[1728503416291,0.153888,61106.0,61105.0,0.099887]
[1728503416483,0.001,61106.0,61105.0,0.099887]
[1728503417684,0.082886,61106.0,61105.0,0.099887]
[1728503418088,0.001,61106.0,61105.0,0.099887]
[1728503419382,0.0038,61115.0,61114.0,0.081875]
[1728503419583,0.00329512,61119.0,61118.0,0.08187]
[1728503419790,0.02308347,61125.0,61118.0,0.63267]
[1728503419991,0.081862,61124.0,61123.0,0.271862]
[1728503420491,0.081856,61129.0,61123.0,0.271862]
[1728503420492,0.081856,61129.0,61128.0,0.081856]
[1728503420681,0.081856,61129.0,61128.0,0.271856]
[1728503421680,0.084856,61129.0,61128.0,0.272856]
[1728503422582,0.003,61129.0,61128.0,0.272856]
[1728503423778,0.011,61129.0,61128.0,0.273856]
[1728503426693,0.011,61129.0,61128.0,0.634656]
[1728503431180,0.011,61129.0,61128.0,0.633656]
[1728503431379,0.081853,61131.0,61130.0,0.081854]
[1728503431585,0.081853,61131.0,61128.0,0.5618]
[1728503431586,0.00096001,61137.0,61128.0,0.56308]
[1728503431787,0.081848,61135.0,61134.0,0.081846]
[1728503434192,0.081848,61135.0,61134.0,0.086846]
[1728503434592,0.081848,61135.0,61134.0,0.005]
[1728503435189,0.081848,61135.0,61134.0,0.086848]
[1728503435594,0.081848,61135.0,61134.0,0.005]
[1728503436692,0.081848,61135.0,61134.0,0.086848]
[1728503437393,0.081848,61135.0,61134.0,0.447648]
[1728503438391,0.081848,61135.0,61134.0,0.086848]
[1728503438695,0.081848,61135.0,61134.0,0.005]
[1728503438895,0.632648,61135.0,61134.0,0.005]
[1728503439193,0.081864,61122.0,61121.0,0.0038]
[1728503439393,0.081873,61116.0,61115.0,0.36325423]
[1728503439596,0.081873,61116.0,61115.0,0.00245423]
[1728503439988,0.081879,61112.0,61106.0,0.1432]
[1728503440188,0.081879,61112.0,61111.0,0.081879]
[1728503441297,1.8608,61122.0,61110.0,0.55196]
[1728503441490,0.081866,61121.0,61120.0,0.271866]
[1728503442796,0.081866,61121.0,61120.0,0.273866]
[1728503443503,0.082866,61121.0,61120.0,0.280866]
[1728503443795,0.272866,61121.0,61120.0,0.009]
[1728503443997,0.081875,61114.0,61108.0,0.04884006]
[1728503444196,0.081875,61114.0,61111.0,0.081878]
[1728503444401,0.081881,61112.0,61111.0,0.081878]
[1728503445590,0.081881,61112.0,61111.0,0.088878]
[1728503446093,0.082881,61112.0,61111.0,0.094878]
[1728503447697,0.082881,61112.0,61111.0,0.013]
[1728503450302,0.082881,61112.0,61111.0,0.094879]
[1728503450505,0.001,61112.0,61111.0,0.094879]
[1728503451110,0.082878,61112.0,61111.0,0.094879]
[1728503454003,0.001,61112.0,61111.0,0.284879]
[1728503454205,1.942665,61122.0,61121.0,0.081866]
[1728503454404,1.942665,61122.0,61121.0,0.271866]
[1728503454804,1.581865,61122.0,61121.0,0.271866]
[1728503455204,1.585865,61122.0,61121.0,0.271866]
[1728503455510,0.081871,61117.0,61116.0,0.00128]
[1728503455697,0.081881,61110.0,61109.0,0.081881]
[1728503456899,0.081881,61110.0,61109.0,0.090881]
[1728503457199,0.082881,61110.0,61109.0,0.090881]
[1728503457813,0.083881,61110.0,61109.0,0.098881]
[1728503458403,0.083881,61110.0,61109.0,0.017]
[1728503460314,1.583881,61110.0,61109.0,0.017]
[1728503461903,2.59292,61110.0,61099.0,0.04884006]
[1728503462103,2.59292,61110.0,61097.0,0.06512008]
[1728503462104,0.081897,61098.0,61097.0,0.13073706]
[1728503462303,0.271894,61100.0,61094.0,0.00245466]
[1728503462304,0.271894,61100.0,61096.0,0.40964006]
[1728503462610,0.081898,61097.0,61096.0,0.3608]